fUST/lending_fUST_20250821
["ID","MTS","AMOUNT","RATE_DAILY","PERIOD"]
[380424936,1755755459324,-480.0,0.00023013,3]
[380424937,1755755459334,-870.35,0.00023013,3]
[380424938,1755755459343,-809.15,0.00023013,3]
[380424939,1755755459352,-480.0,0.00023013,3]
[380424940,1755755459362,-158.51208594,0.00023013,3]
[380424941,1755755459371,-480.0,0.00023013,3]
[380424942,1755755459381,-480.0,0.00023013,3]
[380424943,1755755459390,-480.0,0.00023013,3]
[380424944,1755755459399,-480.0,0.00023013,3]
[380424945,1755755459410,-722.49,0.00023013,3]
[380424946,1755755459419,-480.0,0.00023013,3]
[380424947,1755755459428,-480.0,0.00023013,3]
[380424948,1755755459437,-331.93362667,0.00023013,3]
[380424949,1755755459447,-480.0,0.00023013,3]
[380424950,1755755459456,-1204.42,0.00023013,3]
[380424951,1755755459465,-367.1599772,0.00023013,3]
[380424952,1755755459475,-480.0,0.00023013,3]
[380424953,1755755459484,-480.0,0.00023013,3]
[380424954,1755755459494,-480.0,0.00023013,3]
[380424955,1755755459503,-480.0,0.00023013,3]
[380424956,1755755459513,-480.0,0.00023013,3]
[380424957,1755755459522,-480.0,0.00023013,3]
[380424958,1755755459532,-1034.01,0.00023013,3]
[380424959,1755755459541,-480.0,0.00023013,3]
[380424960,1755755459550,-480.0,0.00023013,3]
[380424961,1755755459560,-1008.04,0.00023013,3]
[380424962,1755755459569,-480.0,0.00023013,3]
[380424963,1755755459578,-480.0,0.00023013,3]
[380424964,1755755459587,-480.0,0.00023013,3]
[380424965,1755755459597,-480.0,0.00023013,3]
[380424966,1755755459606,-521.06,0.00023013,3]
[380424967,1755755459615,-315.14590906,0.00023013,3]
[380424968,1755755459625,-480.0,0.00023013,3]
[380424969,1755755459635,-877.6,0.00023013,3]
[380424970,1755755459644,-591.04,0.00023013,3]
[380424971,1755755459654,-2058.86,0.00023013,3]
[380424972,1755755459663,-480.0,0.00023013,3]
[380424973,1755755459673,-968.17,0.00023013,3]
[380424974,1755755459683,-480.0,0.00023013,3]
[380424975,1755755459691,-767.23,0.00023013,3]
[380424976,1755755459701,-480.0,0.00023013,3]
[380424977,1755755459710,-679.28,0.00023013,3]
[380424978,1755755459720,-543.2621538,0.00023013,3]
[380424979,1755755459731,-264.33963332,0.00023013,3]
[380424980,1755755459744,-2077.9,0.00023013,3]
[380424981,1755755459753,-480.0,0.00023013,3]
[380424982,1755755459763,-480.0,0.00023013,3]
[380424983,1755755459772,-480.0,0.00023013,3]
[380424984,1755755459782,-815.42,0.00023013,3]
[380424985,1755755459791,-590.15,0.00023013,3]
[380424986,1755755459800,-540.5,0.00023013,3]
[380424987,1755755459810,-738.43,0.00023013,3]
[380424988,1755755459819,-480.0,0.00023013,3]
[380424989,1755755459828,-480.0,0.00023013,3]
[380424990,1755755459838,-500.0,0.00023013,3]
[380424991,1755755459847,-519.29443142,0.00023013,3]
[380424992,1755755459857,-480.0,0.00023013,3]
[380424993,1755755459866,-480.0,0.00023013,3]
[380424994,1755755459875,-480.0,0.00023013,3]
[380424995,1755755459885,-480.0,0.00023013,3]
[380424996,1755755459894,-653.6,0.00023013,3]
[380424997,1755755459903,-653.26,0.00023013,3]
[380424998,1755755459913,-480.0,0.00023013,3]
[380424999,1755755459922,-480.0,0.00023013,3]
[380425000,1755755459932,-532.53,0.00023013,3]
[380425001,1755755459942,-480.0,0.00023013,3]
[380425002,1755755459951,-480.0,0.00023013,3]
[380425003,1755755459960,-827.18,0.00023013,3]
[380425004,1755755459970,-344.89503169,0.00023013,3]
[380425005,1755755459979,-480.0,0.00023013,3]
[380425006,1755755459989,-480.0,0.00023013,3]
[380425007,1755755459998,-480.0,0.00023013,3]
[380425008,1755755460008,-480.0,0.00023013,3]
[380425009,1755755460019,-277.57101176,0.00023013,3]
[380425010,1755755460028,-679.09,0.00023013,3]
[380425011,1755755460038,-1257.55,0.00023013,3]
[380425012,1755755460047,-412.70903431,0.00023013,3]
[380425013,1755755460057,-480.0,0.00023013,3]
[380425014,1755755460066,-680.02,0.00023013,3]
[380425015,1755755460076,-779.54,0.00023013,3]
[380425016,1755755460085,-480.0,0.00023013,3]
[380425017,1755755460096,-480.0,0.00023013,3]
[380425018,1755755460106,-177.67578352,0.00023013,3]
[380425019,1755755460115,-480.0,0.00023013,3]
[380425020,1755755460125,-602.09,0.00023013,3]
[380425021,1755755460135,-529.32,0.00023013,3]
[380425022,1755755460144,-892.06,0.00023013,3]
[380425023,1755755460154,-480.0,0.00023013,3]
[380425024,1755755460164,-464.15662002,0.00023013,3]
[380425025,1755755460173,-480.0,0.00023013,3]
[380425026,1755755460183,-467.58515724,0.00023013,3]
[380425027,1755755460193,-480.0,0.00023013,3]
[380425028,1755755460203,-608.17,0.00023013,3]
[380425029,1755755460213,-981.81,0.00023013,3]
[380425030,1755755460223,-415.04795264,0.00023013,3]
[380425031,1755755460233,-480.0,0.00023013,3]
[380425032,1755755460243,-480.0,0.00023013,3]
[380425033,1755755460252,-480.0,0.00023013,3]
[380425034,1755755460262,-480.0,0.00023013,3]
[380425035,1755755460271,-544.73,0.00023013,3]
[380425036,1755755460280,-651.55,0.00023013,3]
[380425037,1755755460291,-383.29047093,0.00023013,3]
[380425038,1755755460300,-575.4,0.00023013,3]
[380425039,1755755460310,-2742.92,0.00023013,3]
[380425040,1755755460319,-480.0,0.00023013,3]
[380425041,1755755460328,-480.0,0.00023013,3]
[380425042,1755755460338,-480.0,0.00023013,3]
[380425043,1755755460347,-480.0,0.00023013,3]
[380425044,1755755460356,-480.0,0.00023013,3]
[380425045,1755755460366,-965.52,0.00023013,3]
[380425046,1755755460375,-847.6,0.00023013,3]
[380425047,1755755460385,-480.0,0.00023013,3]
[380425048,1755755460394,-4305.82,0.00023013,3]
[380425049,1755755460403,-480.0,0.00023013,3]
[380425050,1755755460413,-480.0,0.00023013,3]
[380425051,1755755460422,-480.0,0.00023013,3]
[380425052,1755755460431,-480.0,0.00023013,3]
[380425053,1755755460442,-246.15897925,0.00023013,3]
[380425054,1755755460451,-143.82467417,0.00023013,3]
[380425055,1755755460639,-336.17532583,0.00023013,3]
[380425056,1755755460649,-139.05023978,0.00023013,3]
[380425057,1755755460660,-302.07265492,0.00023013,3]
[380425058,1755755460669,-480.0,0.00023013,3]
[380425059,1755755460679,-367.34223769,0.00023013,3]
[380425060,1755755461346,-480.0,0.00021917,3]
[380425061,1755755461356,-480.0,0.00022191,3]
[380425062,1755755461366,-52.37563738,0.00022465,3]
[380425063,1755755461381,-334.138,0.00022465,3]
[380425064,1755755461393,-93.48636262,0.00022465,3]
[380425065,1755755461403,-219.83077338,0.00023,3]
[380425066,1755755488084,162.008348,0.00013699,2]
[380425067,1755755611329,391.0,0.00027397,120]
[380425068,1755755774440,15000.0,0.0001911,10]
[380425069,1755755814033,13030.0,0.0001911,10]
[380425070,1755755869662,10009.0,0.0001911,10]
[380425071,1755756391432,162.008348,0.00013699,2]
[380425073,1755756500345,419.33166809,0.000189,2]
[380425074,1755756550138,-246.43158813,0.000198,2]
[380425075,1755756550159,-500.0,0.000199,2]
[380425076,1755756550179,-500.0,0.000199,2]
[380425077,1755756550201,-244.41721295,0.000199,2]
[380425078,1755756550225,-97.13026085,0.000199,2]
[380425116,1755756638738,-398.84531268,0.000199,2]
[380425117,1755756638747,-666.0,0.00020113,2]
[380425118,1755756638756,-398.84531258,0.00020835,2]
[380425119,1755756638765,-1257.68679163,0.000209,2]
[380425120,1755756638795,-1335.30672967,0.000209,2]
[380425121,1755756638804,-229.0,0.00020989,2]
[380425122,1755756638813,-1350.69327298,0.0002099,2]
[380425123,1755756639026,-1479.30654129,0.0002099,2]
[380425125,1755756639037,-15697.399022,0.0002099,2]
[380425127,1755756639049,-568.35,0.0002099,2]
[380425180,1755756640526,-1354.59964158,0.0002099,2]
[380425181,1755756640642,-803.58003531,0.0002099,2]
[380425182,1755756640653,-834.67041478,0.0002099,2]
[380425183,1755756640665,-1175.66510949,0.0002099,2]
[380425224,1755756643754,-5014.46532213,0.0002099,2]
[380425226,1755756643766,-360.40286645,0.0002099,2]
[380425228,1755756643778,-32600.95374899,0.0002099,2]
[380425230,1755756643787,-10000.0,0.00021,2]
[380425232,1755756643797,-505.77,0.00021,2]
[380425234,1755756643807,-1713.73054194,0.00021381,2]
[380425236,1755756643816,-452.70803981,0.00021381,2]
[380425238,1755756643826,-494.3097905,0.00021398,2]
[380425240,1755756643835,-600.0,0.000214,2]
[380425242,1755756643845,-151.0,0.00021468,2]
[380425244,1755756643854,-19187.29552238,0.00021468,2]
[380425246,1755756643863,-500.0,0.00021473,2]
[380425248,1755756643872,-264.84180457,0.00021473,2]
[380425250,1755756643882,-617.44463649,0.00021473,2]
[380425252,1755756643891,-501.29248842,0.00021473,2]
[380425254,1755756643900,-500.0,0.00021473,2]
[380425256,1755756643909,-503.04686194,0.00021473,2]
[380425258,1755756643925,-244.1354157,0.00021473,2]
[380425260,1755756643936,-501.70451266,0.00021473,2]
[380425263,1755756643946,-500.0,0.00021473,2]
[380425265,1755756643955,-500.0,0.00021473,2]
[380425267,1755756643964,-500.0,0.00021473,2]
[380425269,1755756643973,-501.1800855,0.00021473,2]
[380425271,1755756643983,-500.0,0.00021473,2]
[380425273,1755756643992,-500.0,0.00021473,2]
[380425275,1755756644002,-500.0,0.00021473,2]
[380425276,1755756644012,-320.84580144,0.00021473,2]
[380425278,1755756644021,-596.32567463,0.00021473,2]
[380425281,1755756644032,-500.0,0.00021473,2]
[380425282,1755756644041,-500.0,0.00021473,2]
[380425284,1755756644052,-500.0,0.00021473,2]
[380425286,1755756644062,-501.609442,0.00021473,2]
[380425288,1755756644073,-500.0,0.00021473,2]
[380425290,1755756644082,-771.77865372,0.00021479,2]
[380425292,1755756644092,-500.0,0.00021479,2]
[380425294,1755756644102,-771.77865372,0.00021479,2]
[380425296,1755756644111,-424.10125587,0.00021479,2]
[380425298,1755756644120,-771.77865372,0.00021479,2]
[380425300,1755756644130,-771.77865372,0.00021479,2]
[380425302,1755756644139,-771.77865372,0.00021479,2]
[380425304,1755756644148,-771.77865372,0.00021479,2]
[380425306,1755756644159,-771.77865372,0.00021479,2]
[380425308,1755756644171,-771.77865372,0.00021479,2]
[380425310,1755756644181,-771.77865372,0.00021479,2]
[380425312,1755756644190,-771.77865372,0.00021479,2]
[380425314,1755756644199,-771.77865372,0.00021479,2]
[380425316,1755756644208,-771.77865372,0.00021479,2]
[380425318,1755756644217,-771.77865372,0.00021479,2]
[380425320,1755756644227,-771.77865372,0.00021479,2]
[380425322,1755756644236,-771.77865372,0.00021479,2]
[380425324,1755756644245,-793.8294724,0.00021479,2]
[380425326,1755756644255,-793.8294724,0.00021479,2]
[380425328,1755756644264,-793.8294724,0.00021479,2]
[380425330,1755756644274,-793.8294724,0.00021479,2]
[380425332,1755756644283,-793.8294724,0.00021479,2]
[380425334,1755756644292,-793.8294724,0.00021479,2]
[380425336,1755756644304,-793.8294724,0.00021479,2]
[380425338,1755756644314,-817.17739805,0.00021479,2]
[380425340,1755756644323,-817.17739805,0.00021479,2]
[380425342,1755756644333,-817.17739805,0.00021479,2]
[380425344,1755756644342,-817.17739805,0.00021479,2]
[380425346,1755756644352,-500.0,0.0002148,2]
[380425348,1755756644361,-138374.29825512,0.0002148,7]
[380425576,1755756646852,-7507.896031,0.0002148,7]
[380425578,1755756646864,-641.00223132,0.0002148,7]
[380425580,1755756646876,-2486.89999999,0.0002148,7]
[380425582,1755756646887,-6390.00702025,0.0002148,7]
[380426219,1755756969615,3163.0,0.00019111,2]
[380426220,1755756977816,2114.84113184,0.00019111,2]
[380426221,1755757104231,302.45563732,0.00019015,2]
[380426222,1755757109820,350.31,0.0002735,120]
[380426223,1755757253020,208.7749137,0.00018968,2]
[380426225,1755757338038,161.734167,0.00013699,2]
[380426228,1755757424394,651.88720202,0.00027397,120]
[380426229,1755757557459,928.0683129,0.00027397,120]
[380426240,1755757748118,-2358.69687979,0.000199,2]
[380426241,1755757748139,-300.0,0.00019972,2]
[380426242,1755757748160,-506.16175241,0.00019973,2]
[380426243,1755757748179,-258.90372747,0.00019973,2]
[380426244,1755757748199,-62.71601869,0.00019973,2]
[380426245,1755757752091,-437.28398131,0.00019973,2]
[380426246,1755757752111,-500.0,0.00019973,2]
[380426247,1755757752131,-500.0,0.00019973,2]
[380426248,1755757752152,-1200.0,0.00019997,2]
[380426249,1755757752172,-300.0,0.00019998,2]
[380426250,1755757752192,-1200.0,0.00019998,2]
[380426251,1755757752212,-584.49664421,0.00019999,2]
[380426252,1755757752231,-500.0,0.00019999,2]
[380426253,1755757752251,-174.83247957,0.00019999,2]
[380426254,1755757752272,-500.0,0.00019999,2]
[380426255,1755757752294,-500.0,0.00019999,2]
[380426256,1755757752316,-500.0,0.00019999,2]
[380426257,1755757752335,-413.78478839,0.00019999,2]
[380426258,1755757752357,-500.0,0.00019999,2]
[380426259,1755757752379,-500.0,0.00019999,2]
[380426260,1755757752401,-500.0,0.00019999,2]
[380426261,1755757752422,-500.0,0.00019999,2]
[380426262,1755757752444,-329.18918849,0.00019999,2]
[380426263,1755757752464,-14479.40803904,0.0002,2]
[380426300,1755757831974,-199.55719201,0.000194,2]
[380426302,1755757831984,-2280.07365057,0.000199,2]
[380426304,1755757831993,-300.0,0.00019999,2]
[380426306,1755757832003,-1012.0,0.00019999,2]
[380426308,1755757832011,-7264.13594179,0.0002,2]
[380426310,1755757832023,-8891.78395398,0.0002,2]
[380426312,1755757832034,-8820.74509608,0.0002,2]
[380426387,1755757838028,-138969.01814511,0.0002,2]
[380426389,1755757838037,-2534.01495843,0.000203,2]
[380426391,1755757838047,-151.0,0.000204,4]
[380426393,1755757838056,-151.0,0.000206,4]
[380426395,1755757838065,-151.0,0.000208,3]
[380426397,1755757838074,-581.1080994,0.000208,2]
[380426399,1755757838084,-587.7335836,0.000208,2]
[380426401,1755757838093,-306.0,0.000208,2]
[380426403,1755757838103,-581.1080994,0.000208,2]
[380426404,1755757838112,-35406.14975049,0.0002099,2]
[380426405,1755757838121,-151.0,0.00021,4]
[380426406,1755757838132,-505.53,0.00021,2]
[380426407,1755757838141,-157.131811,0.0002107,7]
[380426408,1755757838151,-151.0,0.000211,3]
[380426409,1755757838160,-1142.48702796,0.0002128,2]
[380426410,1755757838171,-2534.0149584,0.00021289,2]
[380426411,1755757838180,-151.0,0.000213,3]
[380426412,1755757838189,-151.0,0.00021367,2]
[380426413,1755757838198,-19187.29552238,0.00021367,2]
[380426414,1755757838207,-273.35986992,0.00021373,2]
[380426415,1755757838217,-485.93766275,0.00021373,2]
[380426416,1755757838227,-500.0,0.00021373,2]
[380426417,1755757838236,-500.0,0.00021373,2]
[380426418,1755757838245,-500.0,0.00021373,2]
[380426420,1755757838254,-486.20982051,0.00021373,2]
[380426422,1755757838263,-500.0,0.00021373,2]
[380426423,1755757838272,-500.0,0.00021379,2]
[380426424,1755757838281,-567.75669667,0.00021379,2]
[380426426,1755757838290,-646.87087911,0.00021379,2]
[380426427,1755757838299,-567.75669667,0.00021379,2]
[380426429,1755757838309,-567.75669667,0.00021379,2]
[380426430,1755757838318,-567.75669667,0.00021379,2]
[380426431,1755757838327,-567.75669667,0.00021379,2]
[380426432,1755757838337,-567.75669667,0.00021379,2]
[380426433,1755757838346,-567.75669667,0.00021379,2]
[380426434,1755757838355,-567.75669667,0.00021379,2]
[380426435,1755757838365,-567.75669667,0.00021379,2]
[380426436,1755757838374,-567.75669667,0.00021379,2]
[380426437,1755757838383,-567.75669667,0.00021379,2]
[380426438,1755757838392,-567.75669667,0.00021379,2]
[380426439,1755757838401,-567.75669667,0.00021379,2]
[380426440,1755757838410,-567.75669667,0.00021379,2]
[380426441,1755757838419,-567.75669667,0.00021379,2]
[380426442,1755757838429,-596.14453151,0.00021379,2]
[380426443,1755757838437,-596.14453151,0.00021379,2]
[380426444,1755757838446,-596.14453151,0.00021379,2]
[380426445,1755757838455,-596.14453151,0.00021379,2]
[380426446,1755757838464,-596.14453151,0.00021379,2]
[380426447,1755757838473,-596.14453151,0.00021379,2]
[380426448,1755757838482,-596.14453151,0.00021379,2]
[380426449,1755757838491,-596.14453151,0.00021379,2]
[380426450,1755757838501,-596.14453151,0.00021379,2]
[380426451,1755757838510,-570.3116018,0.00021379,2]
[380426452,1755757838519,-570.3116018,0.00021379,2]
[380426453,1755757838528,-570.3116018,0.00021379,2]
[380426454,1755757838537,-570.3116018,0.00021379,2]
[380426455,1755757838547,-570.3116018,0.00021379,2]
[380426456,1755757838556,-441.62465459,0.00021379,2]
[380426457,1755757838566,-159.13725821,0.00021379,2]
[380426458,1755757838575,-366.9248632,0.0002138,2]
[380426459,1755757838584,-370000.0,0.0002138,2]
[380426460,1755757838593,-524.35129122,0.0002138,2]
[380426461,1755757838603,-293016.56676362,0.0002148,7]
[380426462,1755757838612,-12690.45384448,0.0002148,7]
[380426463,1755757838622,-151.0,0.0002148,2]
[380426464,1755757838631,-151.0,0.0002148,2]
[380426465,1755757838639,-151.0,0.0002148,2]
[380426466,1755757838649,-151.0,0.0002148,2]
[380426467,1755757838658,-151.0,0.0002148,2]
[380426468,1755757838667,-151.0,0.0002148,2]
[380426469,1755757838676,-151.0,0.0002148,2]
[380426470,1755757838685,-151.0,0.0002148,2]
[380426471,1755757838694,-151.0,0.0002148,2]
[380426472,1755757838704,-166.968838,0.0002148,2]
[380426473,1755757838713,-244.58102,0.0002148,2]
[380426474,1755757838723,-151.0,0.0002148,2]
[380426475,1755757838732,-151.0,0.0002148,2]
[380426476,1755757838742,-151.0,0.0002148,2]
[380426477,1755757838751,-176.707653,0.0002148,2]
[380426478,1755757838760,-151.0,0.0002148,2]
[380426479,1755757838770,-151.477448,0.0002148,2]
[380426480,1755757838779,-151.0,0.0002148,2]
[380426481,1755757838789,-151.0,0.0002148,2]
[380426482,1755757838798,-151.0,0.0002148,2]
[380426483,1755757838807,-151.0,0.0002148,2]
[380426484,1755757838817,-151.0,0.0002148,2]
[380426485,1755757838826,-151.0,0.0002148,2]
[380426486,1755757838835,-151.0,0.0002148,2]
[380426487,1755757838845,-151.0,0.0002148,2]
[380426488,1755757838860,-151.290093,0.0002148,2]
[380426489,1755757838869,-151.0,0.0002148,2]
[380426490,1755757838879,-151.0,0.0002148,2]
[380426491,1755757838888,-151.607073,0.0002148,2]
[380426492,1755757838899,-151.0,0.0002148,2]
[380426493,1755757838908,-151.0,0.0002148,2]
[380426494,1755757838917,-151.0,0.0002148,2]
[380426495,1755757838928,-151.0,0.0002148,2]
[380426496,1755757838937,-151.0,0.0002148,2]
[380426497,1755757838946,-151.0,0.0002148,2]
[380426498,1755757838955,-151.0,0.0002148,2]
[380426499,1755757838964,-151.0,0.0002148,2]
[380426500,1755757838973,-151.0,0.0002148,2]
[380426501,1755757838982,-151.0,0.0002148,2]
[380426502,1755757838991,-151.0,0.0002148,2]
[380426503,1755757839000,-151.0,0.0002148,2]
[380426504,1755757839010,-151.0,0.0002148,2]
[380426505,1755757839019,-151.512819,0.0002148,2]
[380426506,1755757839028,-151.0,0.0002148,2]
[380426507,1755757839038,-151.0,0.0002148,2]
[380426508,1755757839047,-151.0,0.0002148,2]
[380426509,1755757839057,-151.0,0.0002148,2]
[380426510,1755757839066,-151.0,0.0002148,2]
[380426511,1755757839075,-151.0,0.0002148,2]
[380426512,1755757839084,-153.080213,0.0002148,2]
[380426513,1755757839093,-153.080213,0.0002148,2]
[380426514,1755757839102,-153.080213,0.0002148,2]
[380426515,1755757839111,-151.0,0.0002148,2]
[380426516,1755757839120,-153.080213,0.0002148,2]
[380426517,1755757839129,-151.0,0.0002148,2]
[380426518,1755757839139,-151.0,0.0002148,2]
[380426519,1755757839148,-151.0,0.0002148,2]
[380426520,1755757839157,-151.0,0.0002148,2]
[380426521,1755757839166,-151.0,0.0002148,2]
[380426522,1755757839175,-151.0,0.0002148,2]
[380426523,1755757839184,-151.0,0.0002148,2]
[380426524,1755757839193,-203.095603,0.0002148,2]
[380426525,1755757839202,-151.0,0.0002148,2]
[380426526,1755757839211,-151.0,0.0002148,2]
[380426527,1755757839220,-170.429107,0.0002148,2]
[380426528,1755757839229,-170.429107,0.0002148,2]
[380426529,1755757839239,-170.429107,0.0002148,2]
[380426530,1755757839248,-170.429107,0.0002148,2]
[380426531,1755757839257,-151.0,0.0002148,2]
[380426532,1755757839266,-151.0,0.0002148,2]
[380426533,1755757839276,-151.0,0.0002148,2]
[380426534,1755757839285,-151.0,0.0002148,2]
[380426535,1755757839295,-151.0,0.0002148,2]
[380426536,1755757839304,-151.0,0.000215,3]
[380426537,1755757839314,-524.3512912,0.00021558,2]
[380426538,1755757839323,-581.1080994,0.00021616,2]
[380426540,1755757839332,-580.4657835,0.00021616,2]
[380426542,1755757839341,-500.0,0.00021653,2]
[380426544,1755757839351,-151.0,0.000217,4]
[380426546,1755757839360,-151.0,0.000217,3]
[380426547,1755757839369,-1000.0,0.00021718,5]
[380426549,1755757839379,-524.3512912,0.00021736,2]
[380426550,1755757839388,-160.0,0.00021749,2]
[380426551,1755757839398,-215.86710461,0.0002176,2]
[380426552,1755757839408,-844.19128999,0.0002176,2]
[380426553,1755757839417,-160.0,0.0002176,2]
[380426554,1755757839426,-160.0,0.0002176,2]
[380426555,1755757839436,-216.95272161,0.0002176,2]
[380426556,1755757839446,-160.0,0.0002176,2]
[380426557,1755757839456,-2280.07365042,0.00021771,2]
[380426558,1755757839465,-420.0,0.00021777,2]
[380426559,1755757839475,-151.0,0.000218,3]
[380426560,1755757839485,-1000.0,0.00021817,2]
[380426561,1755757839496,-173.24132895,0.00021817,2]
[380426562,1755757839507,-505.53,0.00021821,2]
[380426563,1755757839517,-1142.48702794,0.00021824,2]
[380426564,1755757839526,-1800.0,0.00021861,2]
[380426565,1755757839537,-151.0,0.000219,4]
[380426566,1755757839546,-151.0,0.000219,4]
[380426568,1755757839555,-524.3512912,0.00021913,2]
[380426570,1755757839564,-480.0,0.00021917,3]
[380426572,1755757839573,-480.0,0.00021917,3]
[380426574,1755757839582,-480.0,0.00021917,3]
[380426575,1755757839591,-480.0,0.00021917,3]
[380426576,1755757839600,-343.44075412,0.00021917,3]
[380426578,1755757839611,-480.0,0.00021917,3]
[380426579,1755757839619,-480.0,0.00021917,3]
[380426580,1755757839628,-480.0,0.00021917,3]
[380426581,1755757839638,-500.0,0.00021917,3]
[380426582,1755757839647,-480.0,0.00021917,3]
[380426583,1755757839656,-480.0,0.00021917,3]
[380426584,1755757839665,-480.59363438,0.00021917,3]
[380426585,1755757839674,-480.0,0.00021917,3]
[380426586,1755757839684,-460.85574106,0.00021917,3]
[380426587,1755757839693,-480.0,0.00021917,3]
[380426588,1755757839703,-480.0,0.00021917,3]
[380426589,1755757839712,-480.76268742,0.00021917,3]
[380426590,1755757839722,-480.0,0.00021917,3]
[380426592,1755757839732,-480.0,0.00021917,3]
[380426594,1755757839741,-480.0,0.00021917,3]
[380426596,1755757839751,-480.0,0.00021917,3]
[380426598,1755757839760,-480.0,0.00021917,3]
[380426600,1755757839768,-461.13862029,0.00021917,3]
[380426602,1755757839778,-324.60583767,0.00021917,3]
[380426603,1755757839787,-480.0,0.00021917,3]
[380426605,1755757839795,-480.0,0.00021917,3]
[380426607,1755757839805,-480.0,0.00021917,3]
[380426609,1755757839814,-447.4175729,0.00021917,3]
[380426611,1755757839823,-480.0,0.00021917,3]
[380426612,1755757839833,-480.0,0.00021917,3]
[380426613,1755757839843,-480.0,0.00021917,3]
[380426614,1755757839854,-442.39856605,0.00021917,3]
[380426616,1755757839864,-443.42823166,0.00021917,3]
[380426618,1755757839873,-480.0,0.00021917,3]
[380426619,1755757839882,-151.0,0.00021917,2]
[380426621,1755757839891,-480.0,0.00021917,3]
[380426623,1755757839901,-480.0,0.00021917,3]
[380426626,1755757839910,-480.0,0.00021917,3]
[380426627,1755757839919,-480.0,0.00021917,3]
[380426629,1755757839929,-480.0,0.00021917,3]
[380426632,1755757839940,-480.0,0.00021917,3]
[380426633,1755757839949,-712.86,0.00021917,3]
[380426635,1755757839958,-480.0,0.00021917,3]
[380426637,1755757839967,-480.0,0.00021917,3]
[380426639,1755757839976,-480.0,0.00021917,3]
[380426641,1755757839985,-480.0,0.00021917,3]
[380426643,1755757839994,-480.0,0.00021917,3]
[380426645,1755757840003,-480.0,0.00021917,3]
[380426647,1755757840012,-480.0,0.00021917,3]
[380426649,1755757840021,-480.0,0.00021917,3]
[380426652,1755757840032,-480.0,0.00021917,3]
[380426654,1755757840041,-480.0,0.00021917,3]
[380426656,1755757840050,-480.0,0.00021917,3]
[380426658,1755757840059,-480.0,0.00021917,3]
[380426659,1755757840068,-320.1,0.00021917,3]
[380426661,1755757840077,-480.0,0.00021917,3]
[380426663,1755757840086,-480.0,0.00021917,3]
[380426665,1755757840096,-480.0,0.00021917,3]
[380426667,1755757840105,-480.0,0.00021917,3]
[380426669,1755757840114,-480.0,0.00021917,3]
[380426689,1755757840290,-480.0,0.00021917,3]
[380426691,1755757840299,-480.0,0.00021917,3]
[380426693,1755757840308,-196.83076935,0.00021917,3]
[380426695,1755757840315,-480.0,0.00021917,3]
[380426697,1755757840322,-487.84,0.00021917,3]
[380426699,1755757840332,-480.0,0.00021917,3]
[380426701,1755757840339,-1038.72,0.00021917,3]
[380426703,1755757840348,-480.0,0.00021917,3]
[380426705,1755757840357,-480.0,0.00021917,3]
[380426707,1755757840366,-480.0,0.00021917,3]
[380426710,1755757840374,-480.0,0.00021917,3]
[380426711,1755757840381,-480.0,0.00021917,3]
[380426713,1755757840388,-480.0,0.00021917,3]
[380426715,1755757840394,-480.0,0.00021917,3]